bitfinex-derivatives/quotes_SOLF0:USTF0_20251006
["timestamp","ask_amount","ask_price","bid_price","bid_amount"]
[1759780482532,3.11235152,235.4,235.29,7.41]
[1759780482728,3.11235152,235.39,235.29,7.41]
[1759780482932,3.11235152,235.38,235.29,7.41]
[1759780483133,3.11235152,235.4,235.29,7.41]
[1759780483437,3.11235152,235.39,235.29,7.41]
[1759780483738,3.11235152,235.38,235.34,7.41]
[1759780484037,3.11235152,235.4,235.34,7.41]
[1759780484238,3.11235152,235.39,235.34,7.41]
[1759780484438,3.11235152,235.38,235.33,3.8219]
[1759780484639,3.11235152,235.4,235.34,7.41]
[1759780484839,3.11235152,235.39,235.33,11.2319]
[1759780485043,3.11235152,235.38,235.33,3.8219]
[1759780485243,3.11235152,235.4,235.34,7.41]
[1759780485441,3.11235152,235.39,235.33,11.2319]
[1759780485742,3.11235152,235.38,235.34,7.41]
[1759780485937,3.11235152,235.4,235.33,11.2319]
[1759780486137,3.11235152,235.39,235.33,11.2319]
[1759780486338,3.11235152,235.38,235.34,7.41]
[1759780486534,3.11235152,235.4,235.26,7.41]
[1759780486740,3.11235152,235.39,235.26,7.41]
[1759780486940,3.11235152,235.38,235.26,7.41]
[1759780487140,3.11235152,235.4,235.26,7.41]
[1759780487340,3.11235152,235.39,235.26,7.41]
[1759780487643,3.11235152,235.38,235.31,11.2323]
[1759780488944,6.14617447,235.38,235.31,11.2323]
[1759780489140,3.11235152,235.37,235.31,11.2323]
[1759780490343,3.11235152,235.37,235.16,72.5257925]
[1759780490344,3.03382295,235.35,235.24,7.32]
[1759780490734,6.14617447,235.35,235.24,7.32]
[1759780491043,3.11235152,235.34,235.24,7.32]
[1759780491342,3.03382295,235.35,235.24,7.32]
[1759780491538,6.14617447,235.35,235.27,3.8229]
[1759780491737,3.11235152,235.34,235.28,7.32]
[1759780491936,3.03382295,235.35,235.28,7.32]
[1759780492142,6.14617447,235.35,235.28,7.32]
[1759780492443,3.11235152,235.34,235.28,7.32]
[1759780493544,3.11235152,235.34,235.28,11.1428]
[1759780495337,3.11235152,235.34,235.28,3.8228]
[1759780495538,3.11235152,235.33,235.29,7.32]
[1759780495740,3.11235152,235.34,235.29,7.32]
[1759780496043,3.11235152,235.33,235.28,3.8228]
[1759780496234,3.11235152,235.34,235.28,3.8228]
[1759780496434,3.11235152,235.33,235.28,3.8228]
[1759780496642,3.11235152,235.34,235.28,3.8228]
[1759780496835,3.11235152,235.33,235.29,7.32]
[1759780497144,3.11235152,235.34,235.28,11.1428]
[1759780497342,3.11235152,235.33,235.29,7.32]
[1759780497643,3.11235152,235.34,235.28,11.1428]
[1759780497848,3.11235152,235.33,235.28,3.8228]
[1759780498036,3.11235152,235.34,235.28,11.1428]
[1759780498241,3.11235152,235.33,235.28,3.8228]
[1759780498440,3.11235152,235.34,235.28,11.1428]
[1759780498640,3.11235152,235.33,235.28,3.8228]
[1759780498849,3.11235152,235.34,235.28,11.1428]
[1759780499146,3.11235152,235.33,235.28,3.8228]
[1759780499345,3.11235152,235.33,235.22,11.22387]
[1759780499346,3.11235152,235.32,235.31,7.32]
[1759780499540,3.11235152,235.34,235.31,7.32]
[1759780499741,3.11235152,235.33,235.25,59.4745]
[1759780499941,1.06215502,235.37,235.26,7.32]
[1759780499942,3.11235152,235.32,235.26,7.32]
[1759780500144,3.11235152,235.36,235.26,7.32]
[1759780500341,3.11235152,235.35,235.34,7.32]
[1759780500544,3.11235152,235.4,235.34,7.32]
[1759780500838,3.11235152,235.39,235.31,7.32]
[1759780501038,3.11235152,235.38,235.36,3.8215]
[1759780501239,3.11235152,235.41,235.36,3.8215]
[1759780501443,3.11235152,235.4,235.37,7.32]
[1759780501639,3.11235152,235.39,235.37,7.32]
[1759780501846,3.11235152,235.38,235.37,7.32]
[1759780502040,3.11235152,235.43,235.37,7.32]
[1759780502242,3.11235152,235.42,235.37,7.32]
[1759780502442,3.11235152,235.41,235.37,7.32]
[1759780502644,3.11235152,235.4,235.37,7.32]
[1759780502838,3.11235152,235.39,235.37,7.32]
[1759780503043,3.11235152,235.43,235.36,11.1415]
[1759780503243,3.11235152,235.42,235.36,11.1415]
[1759780503443,3.11235152,235.41,235.36,3.8215]
[1759780503646,3.11235152,235.4,235.36,3.8215]
[1759780503839,3.11235152,235.39,235.34,7.32]
[1759780504040,3.11235152,235.42,235.33,3.8219]
[1759780504247,7.75597958,235.41,235.23,7.32]
[1759780504448,63.8286964,235.43,235.23,7.32]
[1759780504449,3.03382295,235.35,235.23,7.32]
[1759780504648,3.11235152,235.34,235.23,7.32]
[1759780504848,3.11235152,235.34,235.22,15.04767]
[1759780504849,3.11235152,235.34,235.22,70.70457]
[1759780505148,3.11235152,235.37,235.25,7.32]
[1759780505348,3.11235152,235.36,235.25,7.32]
[1759780505544,3.11235152,235.35,235.29,3.8226]
[1759780505740,3.11235152,235.34,235.3,7.32]
[1759780505945,3.11235152,235.37,235.3,7.32]
[1759780506246,3.11235152,235.36,235.3,7.32]
[1759780506444,3.11235152,235.35,235.29,11.1426]
[1759780506643,3.11235152,235.34,235.3,7.32]
[1759780506850,4.17445594,235.38,235.3,7.32]
[1759780507051,3.11235152,235.37,235.3,7.32]
[1759780507252,3.11235152,235.36,235.3,7.32]
[1759780507551,1.06210442,235.38,235.29,11.1426]
[1759780507552,3.11235152,235.35,235.29,11.1426]
[1759780507748,3.11235152,235.37,235.3,7.32]
[1759780507948,3.11235152,235.38,235.3,7.32]
[1759780508251,3.11235152,235.37,235.3,7.32]
[1759780508443,3.11235152,235.36,235.3,7.32]
[1759780508647,3.11235152,235.38,235.33,3.8221]
[1759780508842,3.11235152,235.37,235.33,3.8221]
[1759780509040,3.11235152,235.38,235.33,3.8221]
[1759780509242,3.11235152,235.37,235.34,7.32]
[1759780509442,3.11235152,235.36,235.33,3.8221]
[1759780509654,3.11235152,235.4,235.34,7.32]
[1759780509853,3.11235152,235.39,235.34,7.32]
[1759780510048,3.11235152,235.38,235.34,7.32]
[1759780510250,3.11235152,235.37,235.23,7.32]
[1759780510452,3.11235152,235.36,235.25,7.32]
[1759780510647,3.11235152,235.35,235.28,3.8229]
[1759780510953,3.11235152,235.37,235.29,7.32]
[1759780511155,3.03382295,235.38,235.29,7.32]
[1759780511156,3.11235152,235.36,235.29,7.32]
[1759780511360,3.11235152,235.35,235.29,7.32]
[1759780511564,3.11235152,235.34,235.28,3.8229]
[1759780511765,3.11235152,235.37,235.28,11.1429]
[1759780511957,3.11235152,235.36,235.28,11.1429]
[1759780512165,3.11235152,235.35,235.28,11.1429]
[1759780512357,3.11235152,235.34,235.29,3.8226]
[1759780512655,3.11235152,235.37,235.3,7.32]
[1759780512860,3.11235152,235.36,235.3,7.32]
[1759780513060,3.11235152,235.35,235.27,3.823]
[1759780513364,3.11235152,235.34,235.27,3.823]
[1759780513565,6.93395152,235.37,235.27,3.823]
[1759780513865,3.11235152,235.36,235.27,3.823]
[1759780514159,3.11235152,235.35,235.27,3.823]
[1759780514363,3.11235152,235.34,235.27,3.823]
[1759780514565,3.11235152,235.33,235.27,3.823]
[1759780514864,3.11235152,235.36,235.27,3.823]
[1759780515064,3.11235152,235.35,235.27,3.823]
[1759780515264,3.11235152,235.34,235.27,3.823]
[1759780515461,3.11235152,235.33,235.28,3.8228]
[1759780515665,3.11235152,235.34,235.28,11.1428]
[1759780515864,3.11235152,235.33,235.29,7.32]
[1759780516067,3.11235152,235.34,235.27,7.32]
[1759780516266,3.11235152,235.33,235.27,7.32]
[1759780516466,3.11235152,235.37,235.27,7.32]
[1759780516664,3.11235152,235.36,235.27,7.32]
[1759780516860,3.11235152,235.35,235.27,7.32]
[1759780517065,3.11235152,235.34,235.23,7.32]
[1759780517369,3.11235152,235.33,235.23,7.32]
[1759780517568,3.11235152,235.35,235.29,7.32]
[1759780517769,3.11235152,235.36,235.29,7.32]
[1759780518069,3.11235152,235.41,235.34,3.8218]
[1759780518270,3.11235152,235.4,235.34,3.8218]
[1759780518474,3.11235152,235.39,235.33,7.19]
[1759780518775,3.11235152,235.38,235.29,7.19]
[1759780519073,3.11235152,235.41,235.29,7.19]
[1759780519276,3.11235152,235.4,235.29,7.19]
[1759780519569,3.11235152,235.39,235.32,7.19]
[1759780519765,3.11235152,235.38,235.32,7.19]
[1759780520072,3.03382295,235.4,235.32,7.19]
[1759780520371,3.11235152,235.39,235.32,7.19]
[1759780520573,3.11235152,235.38,235.32,7.19]
[1759780520770,3.11235152,235.39,235.32,7.19]
[1759780520970,3.11235152,235.38,235.32,7.19]
[1759780521173,3.11235152,235.39,235.32,7.19]
[1759780521374,3.11235152,235.38,235.28,3.8228]
[1759780521572,3.11235152,235.37,235.28,3.8228]
[1759780521772,6.14617447,235.36,235.28,3.8228]
[1759780522068,3.11235152,235.35,235.27,7.19]
[1759780522273,3.11235152,235.34,235.27,7.19]
[1759780522470,3.03382295,235.36,235.27,7.19]
[1759780522471,3.11235152,235.35,235.27,11.013]
[1759780522867,3.11235152,235.34,235.27,11.013]
[1759780523170,3.03382295,235.36,235.27,11.013]
[1759780523171,3.11235152,235.33,235.27,11.013]
[1759780523371,3.11235152,235.35,235.27,11.013]
[1759780523570,3.11235152,235.34,235.27,11.013]
[1759780523763,3.11235152,235.33,235.27,11.013]
[1759780523968,3.11235152,235.35,235.27,11.013]
[1759780524171,3.11235152,235.34,235.27,11.013]
[1759780524370,3.11235152,235.33,235.27,11.013]
[1759780524571,3.11235152,235.35,235.27,11.013]
[1759780524773,3.11235152,235.34,235.27,11.013]
[1759780524972,3.11235152,235.33,235.27,7.19]
[1759780526163,3.11235152,235.35,235.27,7.19]
[1759780526369,3.11235152,235.36,235.27,7.19]
[1759780526668,3.11235152,235.37,235.28,59.4669]
[1759780526874,3.11235152,235.38,235.29,7.19]
[1759780527175,3.11235152,235.39,235.3,7.19]
[1759780527370,3.11235152,235.38,235.3,7.19]
[1759780527563,11.35613783,235.42,235.32,3.8222]
[1759780527769,7.53533783,235.41,235.32,3.8222]
[1759780528066,3.11235152,235.4,235.33,7.19]
[1759780528262,3.11235152,235.39,235.33,7.19]
[1759780528467,3.11235152,235.38,235.33,7.19]
[1759780528675,3.11235152,235.4,235.33,7.19]
[1759780528873,3.11235152,235.39,235.33,7.19]
[1759780529075,4.42298631,235.41,235.3,7.19]
[1759780529076,3.11235152,235.38,235.3,7.19]
[1759780529271,3.11235152,235.39,235.3,7.19]
[1759780529574,3.11235152,235.38,235.3,7.19]
[1759780529773,3.11235152,235.39,235.3,7.19]
[1759780529973,3.11235152,235.38,235.3,7.19]
[1759780530178,3.11235152,235.39,235.3,7.19]
[1759780530370,3.11235152,235.38,235.3,7.19]
[1759780530569,3.11235152,235.39,235.3,11.0124]
[1759780531876,3.11235152,235.39,235.32,3.8222]
[1759780532076,3.11235152,235.41,235.33,7.19]
[1759780532378,3.11235152,235.4,235.33,7.19]
[1759780532565,3.11235152,235.39,235.33,7.19]
[1759780532771,3.11235152,235.41,235.34,3.8219]
[1759780532978,3.11235152,235.4,235.34,3.8219]
[1759780533177,5.05277475,235.4,235.34,3.8219]
[1759780533380,3.11235152,235.39,235.35,7.19]
[1759780533567,3.11235152,235.39,235.32,3.8222]
[1759780533770,1.94042323,235.37,235.31,7.19]
[1759780534581,1.94042323,235.37,235.31,11.0124]
[1759780536875,5.05277475,235.37,235.33,7.27]
[1759780537070,3.11235152,235.36,235.32,3.8221]
[1759780537276,1.94042323,235.37,235.33,7.27]
[1759780537678,1.94042323,235.37,235.32,3.8221]
[1759780537873,1.94042323,235.37,235.33,7.27]
[1759780538071,1.94042323,235.37,235.34,3.8219]
[1759780538378,1.94042323,235.37,235.29,7.27]
[1759780538574,1.94042323,235.37,235.33,7.27]
[1759780538981,5.05277475,235.37,235.33,7.27]
[1759780539286,3.11235152,235.36,235.33,7.27]
[1759780539578,3.11235152,235.36,235.34,3.8219]
[1759780539882,5.05277475,235.4,235.31,1.94042323]
[1759780540079,3.11235152,235.39,235.32,7.27]
[1759780540278,3.11235152,235.39,235.31,1.94042323]
[1759780540279,3.11235152,235.39,235.35,3.8216]
[1759780540479,3.11235152,235.43,235.31,61.39872323]
[1759780540686,5.05277475,235.43,235.32,7.27]
[1759780540986,3.11235152,235.42,235.36,7.27]
[1759780541185,1.94042323,235.43,235.36,7.27]
[1759780541486,5.05277475,235.43,235.36,7.27]
[1759780541787,3.11235152,235.42,235.36,7.27]
[1759780542185,1.94042323,235.43,235.36,7.27]
[1759780542382,1.94042323,235.43,235.35,7.27]
[1759780542581,3.11235152,235.44,235.35,7.27]
[1759780542782,3.11235152,235.45,235.35,7.27]
[1759780543291,5.05277475,235.46,235.35,7.27]
[1759780543489,3.11235152,235.45,235.35,7.27]
[1759780543682,3.11235152,235.45,235.38,3.8211]
[1759780543886,3.11235152,235.45,235.39,7.27]
[1759780545086,1.94042323,235.45,235.39,7.27]
[1759780545289,5.05277475,235.45,235.39,7.27]
[1759780545488,3.11235152,235.44,235.39,7.27]
[1759780545692,1.94042323,235.45,235.39,7.27]
[1759780545881,5.05277475,235.45,235.39,7.27]
[1759780546188,1.94042323,235.42,235.34,11.0919]
[1759780546496,1.94042323,235.39,235.3,7.27]
[1759780546686,1.94042323,235.39,235.3,11.0926]
[1759780547185,5.05277475,235.39,235.3,11.0926]
[1759780547385,3.11235152,235.38,235.3,11.0926]
[1759780547792,1.94042323,235.39,235.3,11.0926]
[1759780549089,5.05277475,235.39,235.3,11.0926]
[1759780550895,5.05277475,235.39,235.32,3.8222]
[1759780551589,3.11235152,235.39,235.34,7.63]
[1759780551791,7.53005861,235.44,235.31,7.63]
[1759780552093,5.05277475,235.43,235.31,7.63]
[1759780552284,3.11235152,235.42,235.31,7.63]
[1759780552483,1.94042323,235.43,235.34,7.63]
[1759780552886,5.05277475,235.43,235.34,7.63]
[1759780553086,3.11235152,235.42,235.36,3.8214]
[1759780553286,1.94042323,235.43,235.36,3.8214]
[1759780553688,1.94042323,235.43,235.37,3.8213]
[1759780553889,5.05277475,235.43,235.37,11.4513]
[1759780554090,3.11235152,235.42,235.38,7.63]
[1759780554287,3.11235152,235.42,235.39,3.8211]
[1759780554596,3.11235152,235.45,235.39,3.8211]
[1759780554792,1.94042323,235.46,235.4,7.63]
[1759780555094,5.05277475,235.46,235.4,7.63]
[1759780555293,1.94042323,235.45,235.4,7.63]
[1759780555489,5.05277475,235.45,235.4,7.63]
[1759780555699,3.11235152,235.44,235.4,7.63]
[1759780556092,1.94042323,235.45,235.4,7.63]
[1759780556493,5.05277475,235.45,235.39,11.4511]
[1759780556793,3.11235152,235.44,235.38,7.63]
[1759780556992,3.11235152,235.47,235.4,7.63]
[1759780557593,1.94042323,235.46,235.4,7.63]
[1759780559895,5.05277475,235.46,235.4,7.63]
[1759780560097,3.11235152,235.45,235.4,7.63]
[1759780560797,3.11235152,235.45,235.35,1.94042323]
[1759780560798,3.11235152,235.45,235.36,7.63]
[1759780561193,1.94042323,235.46,235.36,7.63]
[1759780561495,1.94042323,235.46,235.37,7.63]
[1759780562193,1.94042323,235.46,235.42,7.63]
[1759780562394,1.94042323,235.46,235.38,7.63]
[1759780562600,3.11235152,235.47,235.38,7.63]
[1759780562792,5.05277475,235.47,235.38,7.63]
[1759780563498,5.05277475,235.47,235.39,3.821]
[1759780563695,5.05277475,235.47,235.38,7.63]
[1759780563894,3.11235152,235.47,235.38,7.63]
[1759780564198,3.11235152,235.47,235.39,1.94042323]
[1759780564398,3.11235152,235.47,235.4,7.63]
[1759780564899,3.11235152,235.47,235.44,3.8203]
[1759780565199,3.11235152,235.47,235.45,7.63]
[1759780565994,3.11235152,235.47,235.39,1.94042323]
[1759780566196,3.11235152,235.47,235.4,7.63]
[1759780566899,3.11235152,235.47,235.4,11.4509]
[1759780567101,3.11235152,235.47,235.4,7.63]
[1759780567496,3.11235152,235.47,235.41,3.8206]
[1759780568203,3.11235152,235.47,235.4,7.63]
[1759780568403,3.11235152,235.47,235.35,59.4499]
[1759780568404,1.94042323,235.45,235.35,59.4499]
[1759780568604,1.94042323,235.45,235.36,7.63]
[1759780568904,1.94042323,235.45,235.4,3.8208]
[1759780569100,1.94042323,235.45,235.41,7.63]
[1759780569405,5.05277475,235.47,235.38,7.63]
[1759780569593,5.05277475,235.47,235.39,1.94042323]
[1759780569799,5.05277475,235.47,235.4,7.63]
[1759780570401,3.11235152,235.47,235.4,7.63]
[1759780570600,3.11235152,235.47,235.43,3.8203]
[1759780570991,3.11235152,235.47,235.4,7.63]
[1759780571194,3.11235152,235.51,235.47,11.4498]
[1759780571699,3.11235152,235.51,235.48,7.63]
[1759780572297,3.11235152,235.51,235.49,3.8195]
[1759780572605,3.11235152,235.51,235.5,7.63]
[1759780573107,3.11235152,235.51,235.43,7.63]
[1759780573302,1.94042323,235.48,235.38,7.63]
[1759780573603,1.94042323,235.45,235.4,3.8209]
[1759780573802,1.94042323,235.45,235.41,7.63]
[1759780574199,1.94042323,235.42,235.37,7.63]
[1759780575405,5.05277475,235.42,235.37,7.63]
[1759780575708,3.11235152,235.41,235.35,3.8216]
[1759780576008,1.94042323,235.42,235.36,7.63]
[1759780578014,1.94042323,235.39,235.36,7.63]
[1759780578215,1.94042323,235.39,235.35,3.8216]
[1759780578516,1.94042323,235.39,235.32,7.96]
[1759780579013,1.94042323,235.39,235.32,11.7821]
[1759780579213,5.05277475,235.39,235.32,11.7821]
[1759780579613,5.05277475,235.39,235.33,3.8219]
[1759780580009,3.11235152,235.38,235.32,7.96]
[1759780580414,3.11235152,235.43,235.32,7.96]
[1759780580716,1.94042323,235.41,235.32,7.96]
[1759780582210,3.11235152,235.43,235.32,7.96]
[1759780582408,1.94042323,235.4,235.32,7.96]
[1759780582616,1.94042323,235.4,235.33,3.8221]
[1759780584324,1.94042323,235.4,235.35,11.7817]
[1759780585024,1.94042323,235.4,235.36,7.96]
[1759780586323,1.94042323,235.4,235.35,3.8217]
[1759780586627,1.94042323,235.4,235.36,7.96]
[1759780587432,1.94042323,235.41,235.36,11.7814]
[1759780587631,1.94042323,235.41,235.33,7.96]
[1759780588230,5.05277475,235.41,235.33,7.96]
[1759780588525,3.11235152,235.4,235.33,7.96]
[1759780588834,1.94042323,235.41,235.37,3.8213]
[1759780589030,1.94042323,235.41,235.33,7.96]
[1759780589334,1.94042323,235.41,235.36,3.8214]
[1759780589531,1.94042323,235.41,235.37,7.96]
[1759780590030,1.94042323,235.41,235.34,3.8219]
[1759780590427,1.94042323,235.41,235.33,7.96]
[1759780590630,3.11235152,235.44,235.36,7.96]
[1759780590825,1.94042323,235.43,235.36,7.96]
[1759780591229,1.94042323,235.43,235.37,3.8213]
[1759780591433,1.94042323,235.43,235.38,7.96]
[1759780591630,1.94042323,235.43,235.37,3.8213]
[1759780591825,5.05277475,235.43,235.37,11.7813]
[1759780592135,3.11235152,235.42,235.38,7.96]
[1759780592333,3.11235152,235.42,235.37,3.8213]
[1759780592834,1.94042323,235.43,235.37,3.8213]
[1759780593142,1.94042323,235.43,235.37,11.7813]
[1759780594428,1.94042323,235.41,235.37,11.7813]
[1759780594828,1.94042323,235.41,235.34,3.8218]
[1759780595029,6.14453547,235.43,235.34,3.8218]
[1759780595338,3.11235152,235.42,235.34,3.8218]
[1759780595640,3.03218395,235.43,235.34,3.8218]
[1759780595833,9.96503547,235.43,235.34,3.8218]
[1759780596033,3.11235152,235.42,235.34,3.8218]
[1759780599340,3.11235152,235.42,235.35,3.8216]
[1759780600342,3.03744884,235.42,235.35,3.8216]
[1759780601544,3.03744884,235.42,235.36,7.87]
[1759780601744,6.06963279,235.44,235.36,7.87]
[1759780601945,3.03744884,235.43,235.28,59.4666]
[1759780602142,3.03744884,235.43,235.29,7.87]
[1759780603744,3.8207,235.42,235.34,11.6918]
[1759780603940,3.03744884,235.41,235.34,11.6918]
[1759780605247,3.03744884,235.41,235.35,3.8216]
[1759780605447,3.03744884,235.41,235.34,7.87]
[1759780605638,6.85834884,235.41,235.34,7.87]
[1759780605839,6.06963279,235.4,235.31,3.8223]
[1759780606039,3.03744884,235.39,235.31,3.8223]
[1759780606238,3.03218395,235.4,235.31,3.8223]
[1759780607246,6.06963279,235.4,235.31,3.8223]
[1759780607446,3.03744884,235.39,235.3,7.87]
[1759780607946,3.03218395,235.4,235.3,7.87]
[1759780608142,3.8215,235.37,235.3,11.6925]
[1759780608348,3.03744884,235.36,235.3,11.6925]
[1759780608549,3.03744884,235.36,235.3,7.87]
[1759780609554,3.03744884,235.36,235.3,11.6924]
[1759780610250,3.03744884,235.36,235.3,7.87]
[1759780610946,6.06963279,235.36,235.3,7.87]
[1759780611152,3.03744884,235.35,235.3,7.69]
[1759780611350,3.03744884,235.35,235.29,3.8226]
[1759780611553,3.03218395,235.36,235.3,7.69]
[1759780611752,3.03218395,235.36,235.25,7.69]
[1759780612449,3.03744884,235.39,235.28,7.69]
[1759780612851,3.03218395,235.4,235.28,7.69]
[1759780613052,6.06963279,235.4,235.28,7.69]
[1759780613249,3.8212,235.39,235.32,3.8221]
[1759780613453,3.03744884,235.38,235.32,11.5121]
[1759780613653,3.03744884,235.38,235.32,7.69]
[1759780613854,3.03744884,235.39,235.32,7.69]
[1759780614554,3.03744884,235.39,235.3,3.8225]
[1759780615559,3.8217,235.36,235.3,3.8225]
[1759780615753,3.03744884,235.35,235.3,3.8225]
[1759780616055,3.03744884,235.35,235.31,7.69]
[1759780616250,3.03744884,235.35,235.3,3.8225]
[1759780617253,3.03744884,235.35,235.31,7.69]
[1759780617451,3.03744884,235.35,235.33,7.69]
[1759780617645,3.03744884,235.38,235.29,7.69]
[1759780617846,3.03218395,235.39,235.29,7.69]
[1759780618053,3.03218395,235.39,235.31,3.8223]
[1759780618054,3.8214,235.38,235.31,3.8223]
[1759780618255,3.03744884,235.37,235.31,3.8223]
[1759780618656,3.8215,235.37,235.31,3.8223]
[1759780618852,3.03744884,235.36,235.31,3.8223]
[1759780619057,3.03744884,235.36,235.31,7.69]
[1759780619354,3.03744884,235.38,235.31,7.69]
[1759780619558,3.03744884,235.37,235.31,7.69]
[1759780619753,3.8219,235.35,235.31,7.69]
[1759780619960,3.03744884,235.34,235.31,7.69]
[1759780620460,3.03744884,235.34,235.3,7.69]
[1759780620760,3.8217,235.36,235.3,7.69]
[1759780620961,3.03744884,235.35,235.28,7.69]
[1759780621157,6.85894884,235.37,235.28,7.69]
[1759780621361,3.03744884,235.36,235.28,7.69]
[1759780621766,3.03744884,235.37,235.28,7.69]
[1759780621957,3.03744884,235.36,235.28,7.69]
[1759780622462,3.03744884,235.37,235.28,7.69]
[1759780622663,3.03744884,235.36,235.28,7.69]
[1759780622863,6.85934884,235.35,235.28,7.69]
[1759780623062,3.03744884,235.34,235.28,7.69]
[1759780623767,3.03744884,235.34,235.28,11.5128]
[1759780624062,3.03744884,235.36,235.28,11.5128]
[1759780624264,3.03744884,235.38,235.28,11.5128]
[1759780624460,3.8217,235.36,235.28,11.5128]
[1759780624657,3.03744884,235.35,235.28,11.5128]
[1759780624854,3.03744884,235.35,235.29,3.8226]
[1759780625261,3.03744884,235.37,235.3,7.69]
[1759780625857,3.03744884,235.38,235.3,7.69]
[1759780626058,3.03744884,235.37,235.3,7.69]
[1759780626264,3.03744884,235.38,235.3,7.69]
[1759780626560,3.03744884,235.39,235.3,7.69]
[1759780627062,7.46951919,235.43,235.3,7.69]
[1759780627263,3.03744884,235.42,235.3,7.69]
[1759780627466,3.03744884,235.41,235.3,7.69]
[1759780627661,3.03744884,235.4,235.35,7.69]
[1759780627866,3.03744884,235.41,235.35,7.69]
[1759780628068,3.03744884,235.4,235.35,7.69]
[1759780628365,3.8207,235.42,235.35,7.69]
[1759780628366,3.03744884,235.41,235.35,7.69]
[1759780628567,3.03744884,235.4,235.35,7.69]
[1759780628765,3.03744884,235.41,235.35,7.69]
[1759780629066,6.40686938,235.43,235.35,7.69]
[1759780629266,3.03744884,235.42,235.37,7.69]
[1759780629468,7.46950193,235.46,235.37,7.69]
[1759780629662,3.03218395,235.43,235.37,7.69]
[1759780629866,3.03744884,235.42,235.37,7.69]
[1759780630563,3.03744884,235.42,235.33,7.69]
[1759780630964,3.03744884,235.44,235.33,7.69]
[1759780631168,3.03744884,235.43,235.33,7.69]
[1759780631470,3.03744884,235.44,235.32,7.69]
[1759780632665,6.06963279,235.44,235.28,7.69]
[1759780632966,3.03744884,235.43,235.29,7.69]
[1759780633167,3.03744884,235.42,235.29,7.69]
[1759780633371,3.03744884,235.41,235.29,7.69]
[1759780633570,4.09930329,235.43,235.29,7.69]
[1759780633772,6.85814884,235.42,235.31,7.69]
[1759780633972,3.03744884,235.41,235.31,7.69]
[1759780634174,6.85834884,235.41,235.31,7.69]
[1759780634373,3.03744884,235.4,235.31,7.69]
[1759780635275,6.85854884,235.4,235.31,7.69]
[1759780635474,3.03744884,235.39,235.31,7.69]
[1759780635675,3.03218395,235.4,235.31,7.69]
[1759780635874,3.03744884,235.4,235.31,7.69]
[1759780636075,41.42,235.39,235.14,9.49091549]
[1759780636376,3.03218395,235.15,235.02,7.69]
[1759780636574,4.40609176,235.14,235.02,7.69]
[1759780636768,7.4435406,235.13,235.02,7.69]
[1759780636965,7.4435406,235.12,235.02,7.69]
[1759780637171,4.40609176,235.11,235.02,7.69]
[1759780637369,4.40609176,235.1,235.02,7.69]
[1759780637569,3.8241,235.21,235.02,11.5171]
[1759780637775,3.17325675,235.2,235.03,7.69]
[1759780637967,3.17325675,235.19,235.03,7.69]
[1759780638169,3.17325675,235.18,235.03,7.69]
[1759780638368,3.21225224,235.17,235.03,7.69]
[1759780638567,3.03218395,235.18,235.03,7.69]
[1759780639479,6.24455235,235.18,235.03,7.69]
[1759780641679,6.24455235,235.18,235.05,7.77]
[1759780643189,3.03218395,235.18,235.07,7.77]
[1759780644985,14.47273675,235.22,235.09,7.77]
[1759780644986,3.03218395,235.22,235.09,7.77]
[1759780645380,3.03218395,235.22,235.1,7.77]
[1759780647992,6.85608395,235.22,235.1,7.77]
[1759780649590,7.9188274,235.22,235.1,7.77]
[1759780653296,3.8242,235.2,235.1,7.77]
[1759780654400,4.0949274,235.22,235.1,7.77]
[1759780654598,3.03218395,235.22,235.1,7.77]
[1759780654902,6.23334355,235.22,235.1,7.77]